Cogmind - Beta 15 @@@ ROGUE MODE // 2025.08.08 @ 20:16:37 Player: beans Result: Destroyed by C-40 Crusher with Compactor Performance ------------- Evolutions (4) 2000 Regions Visited (5) 1000 Robots Destroyed (16) 80 Value Destroyed (626) 626 Prototype IDs (12) 240 Alien Tech Used (0) 0 Bonus (449) 449 TOTAL SCORE: 4395 Bonus ------- Registered with UFD 300 Met Optimus in HQ 500 Friendly Fire -351 Cogmind --------- Core Integrity 0/850 Matter 79/550 Energy 18/100 System Corruption 10% Temperature Cool (0) Movement Walking (220) Location -6/Waste Parts ------- > --- POWER (2) -------- (None) > --- PROPULSION (4) --- Multireflex Exoskeleton Multireflex Exoskeleton > --- UTILITY (6) ------ Matter Compressor > --- WEAPON (3) ------- (None) > --- INVENTORY (5) ---- MA-1KR's Cyclogen Assault Rifle Siege Cannon Replica Peak State ------------ > --- POWER ------------ Cold Fusion Reactor MA-1KR's Cyclogen > --- PROPULSION ------- Multireflex Exoskeleton Multireflex Exoskeleton > --- UTILITY ---------- Small Storage Unit Advanced Weapon Cycler > --- WEAPON ----------- Assault Rifle Flak Cannon > --- INVENTORY -------- Carbon-fiber Leg Carbon-fiber Leg Matter Compressor Siege Cannon Replica [Rating: 53] Favorites ----------- Power Ion Engine Engine Ion Engine Reactor Cold Fusion Reactor Propulsion Light Treads Treads Light Treads Leg Multireflex Exoskeleton Utility Small Storage Unit Device Advanced Weapon Cycler Storage Small Storage Unit Processor A0-MCA's Component Scanner Weapon Assault Rifle Ballistic Gun Assault Rifle Ballistic Cannon Flak Cannon Launcher Long-range Missile Launcher Impact Weapon Heavy Mace Build | -11 -10 -10 -9 -6 -6 ------- Run | Yrd Mat Sub Scr Fac Was Slots Evolved 8 | . . . . 8 . Power 1 | . . . . 1 . Propulsion 2 | . . . . 2 . Utility 4 | . . . . 4 . Weapon 1 | . . . . 1 . Parts Attached 22 | 5 1 . 8 8 . Power 3 | 1 . . 1 1 . Engine 1 | 1 . . . . . Core . | . . . . . . Reactor 2 | . . . 1 1 . Propulsion 7 | 2 . . 3 2 . Treads 5 | 2 . . 3 . . Leg 2 | . . . . 2 . Wheel . | . . . . . . Hover . | . . . . . . Flight . | . . . . . . Utility 5 | 1 . . 1 3 . Device 1 | . . . . 1 . Storage 2 | 1 . . . 1 . Processor 2 | . . . 1 1 . Hackware . | . . . . . . Protection . | . . . . . . Artifact . | . . . . . . Weapon 7 | 1 1 . 3 2 . Energy Gun . | . . . . . . Energy Cannon . | . . . . . . Ballistic Gun 2 | 1 . . 1 . . Ballistic Cannon 2 | . . . . 2 . Launcher 2 | . 1 . 1 . . Special Weapon . | . . . . . . Impact Weapon 1 | . . . 1 . . Slashing Weapon . | . . . . . . Piercing Weapon . | . . . . . . Special Melee Weapon . | . . . . . . Unidentified Prototypes 1 | . . . . 1 . Parts Lost 4 | . . . 4 . . Power 1 | . . . 1 . . Propulsion 1 | . . . 1 . . Utility . | . . . . . . Weapon 2 | . . . 2 . . Highest Loss Streak 2 | . . . 2 . . To Critical Strikes . | . . . . . . Average Backups 2 | . . . 2 3 4 Power . | . . . . 1 1 Propulsion . | . . . . . 1 Utility . | . . . . . . Weapon 1 | . . . 1 1 1 Tool/Special . | . . . . . . Unused Backups 2 | . . . . . 2 Power . | . . . . . . Propulsion 2 | . . . . . 2 Utility . | . . . . . . Weapon . | . . . . . . Tool/Special . | . . . . . . Average Slot Usage (%) 80 | . 82 85 86 42 32 Engine 11 | . 14 14 13 . . Treads 24 | . 28 28 27 5 . Storage 13 | . 14 14 14 9 5 Processor 9 | . . . 11 4 . Ballistic Gun 11 | . 14 14 12 4 2 Launcher 5 | . 11 14 5 . . Impact Weapon 1 | . . . 1 . . Peak Build Rating 53 | 5 6 6 25 53 53 Average Rating 17 | 3 5 6 15 37 39 On Entrance 14 | . 5 6 6 23 46 Naked Turns . | . . . . . . Heaviest Build 53 | 12 15 15 20 53 48 Greatest Support 72 | 40 40 40 40 72 72 Greatest Overweight (x) 11 | . . . . 11 . Average Overweight (x) . | . . . . 1 . Largest Inventory Capacity 8 | 8 8 8 8 8 8 Average Capacity 7 | 6 8 8 8 8 7 Most Carried 8 | 4 1 . 8 8 8 Average Carried 2 | . . . 2 4 5 Final Capacity 8 | 8 8 8 8 8 5 Final Carried 7 | . . . 7 7 5 Class Distribution -------------------- 96% | Mutant 3% | Gunner Dominant Class ---------------- Mutant | -10/Materials Mutant | -10/Subcaves Mutant | -9/Scraptown Mutant | -6/Factory Gunner | -6/Waste Resources | -11 -10 -10 -9 -6 -6 ----------- Run | Yrd Mat Sub Scr Fac Was Matter Collected 995 | 165 . 14 618 137 61 Remotely . | . . . . . . Salvage Created 843 | . . . 683 160 . Parts 52 | . . . 43 9 . Haulers Intercepted 1 | . . . . 1 . Recyclers Shooed 1 | . . . . 1 . Parts Field Recycled . | . . . . . . Retrieved Matter . | . . . . . . Parts Self-Destructed . | . . . . . . Prevented . | . . . . . . Kills | -11 -10 -10 -9 -6 -6 ------- Run | Yrd Mat Sub Scr Fac Was Combat Hostiles Destroyed 14 | . . . 12 2 . Melee 2 | . . . 2 . . Cannons 2 | . . . . 2 . AOE 10 | . . . 10 . . Classes Destroyed 8 | . . . 6 2 . Hauler 1 | . . . . 1 . Grunt 2 | . . . . 2 . Bolteater 1 | . . . 1 . . Federalist 1 | . . . 1 . . Explorer 1 | . . . 1 . . Ranger 1 | . . . 1 . . Guru 2 | . . . 2 . . Scrapper 7 | . . . 7 . . Best Kill Streak 7 | . . . 7 3 . Combat Bots Only 7 | . . . 7 2 . Max Kills in Single Turn 2 | . . . 2 1 . Gunslinging . | . . . . . . Exploded 2 | . . . 2 . . Melee 1 | . . . 1 . . Uniques/NPCs Destroyed . | . . . . . . Combat | -11 -10 -10 -9 -6 -6 -------- Run | Yrd Mat Sub Scr Fac Was Hostile Shots Fired 64 | . . . 58 1 5 Missed 13 | . . . 12 . 1 Hits 51 | . . . 46 1 4 Melee 4 | . . . . . 4 Projectile 47 | . . . 46 1 . Critical Strikes 4 | . . . 2 . 2 Damage Taken 1855 | . . . 878 285 692 Core 1048 | . . . 155 285 608 Absorbed by Shields . | . . . . . . Core Remaining (%) 69 | 100 . . 38 . . Volleys Fired 40 | . 1 . 17 8 14 Largest 2 | . 1 . 1 2 1 Hottest 90 | . 20 . 43 90 90 Shots Fired 41 | . 1 . 17 9 14 Gun 4 | . 1 . 1 2 . Cannon 21 | . . . . 7 14 Launcher 16 | . . . 16 . . Special . | . . . . . . Kinetic 25 | . 1 . 1 9 14 Thermal . | . . . . . . Explosive 16 | . . . 16 . . Electromagnetic . | . . . . . . Robot Hit Streak 8 | . . . 5 8 1 Robot Miss Streak 6 | . 1 . 2 1 6 Penetration Max 1 | . . . . 1 1 Secondary Targets . | . . . . . . Shots Hit Robots 18 | . . . 11 5 2 Core Hits 29 | . . . 24 4 1 Critical Kills . | . . . . . . Critical Parts Destroyed . | . . . . . . Critical Strikes 1 | . . . . 1 . Blast 1 | . . . . 1 . Melee Attacks 6 | . . . 6 . . Impact 6 | . . . 6 . . Slashing . | . . . . . . Piercing . | . . . . . . Sneak Attacks . | . . . . . . Combat Hostiles . | . . . . . . Follow-up Attacks . | . . . . . . Damage Inflicted 2106 | . . . 875 562 669 Guns 31 | . . . 10 21 . Cannons 1210 | . . . . 541 669 Explosions 647 | . . . 647 . . Melee 218 | . . . 218 . . Ramming . | . . . . . . Kinetic 1241 | . . . 10 562 669 Thermal . | . . . . . . Explosive 647 | . . . 647 . . Electromagnetic . | . . . . . . Impact 218 | . . . 218 . . Slashing . | . . . . . . Piercing . | . . . . . . Highest Corruption 10 | . . . 1 . 10 Average Corruption 2 | . . . 1 . 10 Corruption Purged . | . . . . . . Corruption Blocked . | . . . . . . Effects 5 | . . . 3 . 2 Message Errors 1 | . . . . . 1 Matter Fused 1 | . . . 1 . . Energy Discharges 1 | . . . . . 1 Parts Rejected 1 | . . . 1 . . Data Loss (major) 1 | . . . 1 . . Overload Shots . | . . . . . . Overflow Damage 95 | . . . 1 94 . Projectiles 94 | . . . . 94 . Explosions . | . . . . . . Melee 1 | . . . 1 . . Knockbacks 4 | . . . 2 2 . Impact 2 | . . . 2 . . Kinetic 2 | . . . . 2 . Secondary . | . . . . . . Self-Inflicted Damage 130 | . . . 130 . . Shots 3 | . . . 3 . . Rammed . | . . . . . . Targets Rammed . | . . . . . . Kicked . | . . . . . . Crushed . | . . . . . . Highest Temperature 520 | . . . 34 131 520 Average Temperature 143 | . . . 12 50 260 Received Heat Transfer 470 | . . . 461 9 . Effects 2 | . . . . . 2 Interference 1 | . . . . . 1 Damage (minor) 1 | . . . . . 1 Siege Activations . | . . . . . . Martial Activations 1 | . . . . . 1 Total Turns 16 | . . . . . 16 Longest Duration 16 | . . . . . 16 Shielding Activations . | . . . . . . Robots Disrupted . | . . . . . . Combat Hostiles . | . . . . . . Robots Corrupted . | . . . . . . Combat Hostiles . | . . . . . . Parts Fried . | . . . . . . Impact Corruptions 1 | . . . 1 . . Robots Melted . | . . . . . . Combat Hostiles . | . . . . . . Parts Melted 6 | . . . 6 . . Heat Transferred . | . . . . . . Parts Sabotaged . | . . . . . . Parts Stolen . | . . . . . . Parts Stripped . | . . . . . . Power Chain Reactions . | . . . . . . Alert | -11 -10 -10 -9 -6 -6 ------- Run | Yrd Mat Sub Scr Fac Was Maximum Alert Level . | . . . . . . Low Security (%) 100 | 100 100 . . 100 100 Level 1 . | . . . . . . Level 2 . | . . . . . . Level 3 . | . . . . . . Level 4 . | . . . . . . Level 5 . | . . . . . . High Security . | . . . . . . Max Security . | . . . . . . Peak Influence 39 | . . . . 39 9 Initial . | . . . . . . Average 3 | . . . . 5 2 Influence Increases 82 | . . . . 71 11 Destroy 0b10 Robot/C 40 | . . . . 40 . Destroy 0b10 Robot/NC 5 | . . . . 5 . Destroy Leader 2 | . . . . 2 . Disable Machine 15 | . . . . 15 . Destroy Structure 20 | . . . . 9 11 Influence Decreases 82 | . . . . 71 11 Time Decay 82 | . . . . 71 11 Squads Dispatched 2 | . 1 . . 1 . Investigation . | . . . . . . Extermination . | . . . . . . Reinforcement 2 | . 1 . . 1 . Assault . | . . . . . . Garrison . | . . . . . . Intercept . | . . . . . . Searches Triggered . | . . . . . . Construction Impeded . | . . . . . . Haulers Reinforced . | . . . . . . Active Scanning Responses . | . . . . . . Cargo Convoy Interrupts . | . . . . . . Stealth | -11 -10 -10 -9 -6 -6 --------- Run | Yrd Mat Sub Scr Fac Was Distress Signals . | . . . . . . Communications Jammed . | . . . . . . Distress Signals . | . . . . . . Times Spotted 40 | . 1 . 31 3 5 Peak Tracking Total 6 | . 1 . 6 2 5 Tactical Retreats 3 | . . . 3 . . Traps | -11 -10 -10 -9 -6 -6 ------- Run | Yrd Mat Sub Scr Fac Was Traps Triggered 1 | . . . . 1 . Indirectly . | . . . . . . Trap Hack Attempts . | . . . . . . Triggered . | . . . . . . Disarmed . | . . . . . . Reprogrammed . | . . . . . . Reused . | . . . . . . Traps Extracted . | . . . . . . Installed . | . . . . . . Triggered . | . . . . . . Machines | -11 -10 -10 -9 -6 -6 ---------- Run | Yrd Mat Sub Scr Fac Was Machines Disabled 3 | . . . 2 1 . Max in Single Turn 1 | . . . 1 1 . Machines Repaired . | . . . . . . Machines Dismantled . | . . . . . . Machines Sabotaged . | . . . . . . Overloaded Fab Kills . | . . . . . . Hacking | -11 -10 -10 -9 -6 -6 --------- Run | Yrd Mat Sub Scr Fac Was Machines Accessed 5 | . . . 5 . . Terminals . | . . . . . . Fabricators . | . . . . . . Repair Stations . | . . . . . . Recycling Units . | . . . . . . Scanalyzers . | . . . . . . Garrison Access . | . . . . . . Total Hacks 36 | . . . 36 . . Successful 36 | . . . 36 . . Failed . | . . . . . . Catastrophic . | . . . . . . Database Lockouts . | . . . . . . Manual . | . . . . . . Terminals . | . . . . . . Fabricators . | . . . . . . Repair Stations . | . . . . . . Recycling Units . | . . . . . . Scanalyzers . | . . . . . . Garrison Access . | . . . . . . Terminal Hacks 36 | . . . 36 . . Record 29 | . . . 29 . . Robot Analysis 7 | . . . 7 . . Fabricator Hacks . | . . . . . . Repair Station Hacks . | . . . . . . Recycling Unit Hacks . | . . . . . . Scanalyzer . | . . . . . . Garrison Access Hacks . | . . . . . . Unauthorized Hacks . | . . . . . . Terminals . | . . . . . . Fabricators . | . . . . . . Repair Stations . | . . . . . . Recycling Units . | . . . . . . Scanalyzers . | . . . . . . Garrison Access . | . . . . . . Data Cores Recovered . | . . . . . . Used . | . . . . . . Hacking Detections . | . . . . . . Full Trace Events . | . . . . . . Feedback Events . | . . . . . . Feedback Blocked . | . . . . . . Robot Schematics Acquired . | . . . . . . Robots Built . | . . . . . . Authchips . | . . . . . . Time . | . . . . . . Total Robot Build Rating . | . . . . . . Part Schematics Acquired . | . . . . . . Parts Built . | . . . . . . Authchips . | . . . . . . Time . | . . . . . . Total Part Build Rating . | . . . . . . Parts Repaired . | . . . . . . Time . | . . . . . . Parts Recycled . | . . . . . . Recycled Matter . | . . . . . . Retrieved Matter . | . . . . . . Retrieved Components . | . . . . . . Parts Scanalyzed . | . . . . . . Part Schematics Acquired . | . . . . . . Parts Damaged . | . . . . . . Bothacking | -11 -10 -10 -9 -6 -6 ------------ Run | Yrd Mat Sub Scr Fac Was Used RIF Installer . | . . . . . . Robots Hacked . | . . . . . . Non-combat . | . . . . . . Combat . | . . . . . . Robot Hacks Applied . | . . . . . . Relay Couplers Released . | . . . . . . Fabnet Peak Effective % . | . . . . . . Robots Rewired . | . . . . . . Allies Hacked . | . . . . . . Hacks Repelled . | . . . . . . Allies | -11 -10 -10 -9 -6 -6 -------- Run | Yrd Mat Sub Scr Fac Was Total Allies . | . . . . . . Largest Group . | . . . . . . Highest-Rated Group . | . . . . . . Highest-Rated Ally . | . . . . . . Total Orders . | . . . . . . Ally Attacks . | . . . . . . Total Damage . | . . . . . . Kills . | . . . . . . Allies Corrupted . | . . . . . . Allies Melted 3 | . . . 3 . . Intel | -11 -10 -10 -9 -6 -6 ------- Run | Yrd Mat Sub Scr Fac Was Active Infowar (turns) . | . . . . . . Robot Analysis Total 7 | . . . 7 . . Derelict Logs Recovered . | . . . . . . Drone Launches . | . . . . . . Drone Recoveries . | . . . . . . Exploration | -11 -10 -10 -9 -6 -6 ------------- Run | Yrd Mat Sub Scr Fac Was Turns Passed 3096 | 52 111 48 2474 351 60 Spaces Moved 1534 | 41 14 31 1265 160 23 Core 51 | 20 . . . 31 . Treads 1380 | 21 14 31 1265 49 . Legs 103 | . . . . 80 23 Wheels . | . . . . . . Hover . | . . . . . . Flight . | . . . . . . Fastest Speed 50 | 50 160 160 140 100 110 Average Speed 160 | 106 160 160 160 181 143 Slowest Speed 600 | 160 160 160 165 600 220 Overloaded Moves 7 | . . . . . 7 Propulsion Burnouts . | . . . . . . Robots Hopped . | . . . . . . Potential Cave-ins . | . . . . . . Cave-ins Triggered . | . . . . . . Exploration Rate (%) 19 | 4 4 4 79 4 19 Regions Visited 5 Branch Regions 2 Pre-discovered Areas . | . . . . . . Known Exits Taken 1 | . . . 1 . . Unknown Exits Taken 3 | 1 1 1 . . . Scrap Searched 5 | . . . 5 . . Spaces Dug 6 | . . . 6 . . Terrain Destroyed 97 | . . . 68 9 20 Melee . | . . . . . . Projectile 29 | . . . . 9 20 AOE 68 | . . . 68 . . Terrain Rammed . | . . . . . . Walls Destroyed . | . . . . . . Machines Disabled . | . . . . . . Actions | -11 -10 -10 -9 -6 -6 --------- Run | Yrd Mat Sub Scr Fac Was Total 2128 | 50 102 30 1682 220 44 Wait 474 | . 86 . 367 20 1 Move 1530 | 40 13 30 1264 160 23 Hop . | . . . . . . Pick Up 26 | 5 1 . 12 8 . Fast Attach 6 | . . . . 4 2 Attach 28 | 5 1 . 8 13 1 Detach 9 | . . . 2 5 2 Swap 4 | . . . 4 . . Drop 5 | . . . 2 2 1 Fire 40 | . 1 . 17 8 14 Melee 6 | . . . 6 . . Ram . | . . . . . . Kick . | . . . . . . Crush . | . . . . . . Escape Stasis . | . . . . . . Rewire . | . . . . . . Trap . | . . . . . . Miscellaneous . | . . . . . . Route ------- -11/Scrapyard -10/Materials -10/Subcaves -9/Scraptown (discovered 2 exits: *Fac x2) -6/Factory -6/Waste History --------- Turn | Location | Event 6 | -11/Scrapyard | Discovered new exit (range 16) 53 | -11/Scrapyard | Entered Materials 147 | -10/Materials | Discovered new exit (range 8) 164 | -10/Materials | Entered Subcaves 165 | -10/Subcaves | Approached by a straggling Scientist 166 | -10/Subcaves | Scientist uncovered a shortcut to Scraptown 212 | -10/Subcaves | Entered Scraptown 312 | -9/Scraptown | Build established: Mutant 417 | -9/Scraptown | Visited UFD Registry 417 | -9/Scraptown | Registered with UFD as "Zerobrain" 460 | -9/Scraptown | Visited Sword Containment 484 | -9/Scraptown | Visited Abandonware Association 527 | -9/Scraptown | Visited LU-1G1's Boring Crew 594 | -9/Scraptown | Visited Analyses Database 628 | -9/Scraptown | Visited DA-N13 Charitable Foundation 636 | -9/Scraptown | Found DCF Scrap (29 items) 677 | -9/Scraptown | Visited A0-MCA Data Center 687 | -9/Scraptown | Given an A- rating by A0-MCA 689 | -9/Scraptown | Found A0-MCA's Component Scanner 726 | -9/Scraptown | Visited Scrap Suit Storage 761 | -9/Scraptown | Visited Curators Association 795 | -9/Scraptown | Visited Science Guys 1298 | -9/Scraptown | Visited SPCMW 1355 | -9/Scraptown | Visited Scrapoid Research Area 1403 | -9/Scraptown | Visited Symbiants 1453 | -9/Scraptown | Visited The Evicted 1986 | -9/Scraptown | Met Optimus 1986 | -9/Scraptown | Accepted into 0bPrime 2386 | -9/Scraptown | Civil war broke out across Scraptown 2460 | -9/Scraptown | Identified exit to Factory 2465 | -9/Scraptown | Destroyed 7 combat bots 2505 | -9/Scraptown | Lost 13 allies 2533 | -9/Scraptown | Found Siege Cannon Replica 2568 | -9/Scraptown | Found MA-1KR's Cyclogen 2603 | -9/Scraptown | Optimus destroyed in the chaos of civil war 2632 | -9/Scraptown | Core integrity fell below 50% 2672 | -9/Scraptown | Lost 9 allies 2686 | -9/Scraptown | Entered Factory 2686 | -6/Factory | Evolved 8 slots: Power x1, Propulsion x2, Utility x4, Weapon x1 3037 | -6/Factory | Sucked down chute 3037 | -6/Factory | Entered Waste 3045 | -6/Waste | Spotted C-40 Crusher 3045 | -6/Waste | Spotted C-40 Crusher 3048 | -6/Waste | Spotted C-40 Crusher 3052 | -6/Waste | EMP discharged 3052 | -6/Waste | System corruption reached 10% 3064 | -6/Waste | Core integrity fell below 50% 3073 | -6/Waste | Core integrity fell below 20% 3076 | -6/Waste | Spotted C-40 Crusher 3079 | -6/Waste | Spotted C-40 Crusher 3080 | -6/Waste | Crushed by Compactor (0 parts destroyed, 1 dropped) 3089 | -6/Waste | Crushed by Compactor (0 parts destroyed, 1 dropped) 3097 | -6/Waste | Destroyed by C-40 Crusher with Compactor Last Messages --------------- core (-21). Siege Slug penetrates C-40 Crusher. 8 Matter crushed. Siege Cannon Replica recoils violently, damaging core (-42). Siege Slug penetrates Earth. Siege Slug penetrates Wall. Overheating: System interference. Siege Cannon Replica temporarily disabled. Sml. Storage Unit crushed. Extracted 61 matter. Activated martial mode. Acquired Matter Compressor. Carbon-fiber Leg crushed. Sml. Storage Unit crushed. Carbon-fiber Leg crushed. 22 Matter crushed. Matter Compressor crushed. Acquired Matter Compressor. JDV=1OUXSEWF D&/7CY2 ,09ANEKDA=4VSALP> Map ----- +----------------------------------------------------+ | ???????????????????????????????????????????? | | ???????????????????????????????????????????? | | ???????????????????????????????????????????? | | ???????????????????????????????????????????? | | ???????????????????????????????????????????? | | ???????????????????????????????????????????? | | ???????????????????????????????????????????? | | ???????????????????????????????????????????? | | ???????????????????????????????????????????? | | ???????????????????????????????????????????? | | ???????????????????????????????????????????? | | ???????????????????????????????????????????? | | ???????????????????????????????????????????? | | ???????????????????????????? ???????????? | | ???????????????????????????? #??????????? | | ???????????????????????????? #??????????? | | ???????????????????????????# #??????????? | | ???????????????????????????# #??????????? | | ??????????????????????????## #####??????? | | ?????????????????????????? ???????? | | ??????????????????????????? ????????? | | ??????????????????????????? ?????????? | | ??????????????????????????? ??????????? | | ???????????????????????????# #??????????? | | ?????????????############ ## #??????????? | | ?????????????# @ ; ; #??????????? | | ?????????????# CCCC ;### #####??????? | | ?????????????# CCCCCC ;### " ???????? | | ?????????????# CCCC #??????????? | | ?????????????# CC " #????????? | | ?????????????# CC #??????????? | | ?????????????# CC #??????????? | | ?????????????# #%;# ;??????????? | | ?????????????# #### " ?????????? | | ?????????????# #??# #??????????? | | ?????????????############??# #??????????? | | ???????????????????????????# #??????????? | | ??????????????????????????? ??????????? | | ??????????????????????????? ?????????? | | ??????????????????????????? #????????? | | ??????????????????????????? #????????? | | ??????????????????????????? #????????? | | ??????????????????????????? #????????? | | ??????????????????????????? #????????? | | ??????????????????????????? ???????????? | | ???????????????????????????????????????????? | | ???????????????????????????????????????????? | | ???????????????????????????????????????????? | | ???????????????????????????????????????????? | | ???????????????????????????????????????????? | +----------------------------------------------------+ Best States ------------- Heat Dissipation 37 Energy Generation 17 Energy Capacity 2600 Matter Stores 444 Matter Capacity 550 Sight Range 16 Terrain Scan Density 10 Weapon Cycling 25 Evasion (%) 55 Recoil Reduction 2 Item Schematics ----------------- None Robot Schematics ------------------ None Fabricated ------------ Nothing Repaired ---------- Nothing Alien Tech Used ----------------- None Achievements -------------- None Challenges ------------ None Game ------ Seed CobblerHeartDriveblaster Manual? 0 Play Time 00:22:55 Cumulative 85.1 hours Start 2025.08.08 @ 19:54:46 End 2025.08.08 @ 20:16:37 Sessions 1 Manual Loads 0 Difficulty Rogue Special Mode None Game No. 334 Rogue 334 Adventurer 0 Explorer 0 Win Type - Total 0 Types 0/0/0/0/0/0/0/0/0/0 Lore% 36 Gallery% 36 Achievement% 30 Wizard Run 0 Options --------- Layout 2 ASCII 0 Keyboard 0 Movement Mouse Keybinds 0 Fullscreen 2 Font 24/Smallcaps Map View 50x44 Zoom Use 0% Tactical HUD 0 Map Filters NONE Filters NONE Steam 1 RUN: 019b4b32-099d-46d7-a864-11c1fb0507e3